{"text_format":"1","workbook":"xlsx","n_sheets":1,"sheets":["Hoja1"],"not_rendered":{"charts":0,"images":0,"macros":1,"external_links":0,"defined_names":0,"comments":0,"pivot_tables":0},"unopened":[],"bounds":{"document_bytes":16777216,"sheet_cells":100000,"rows_first":2000,"rows_last":500,"rows_between":2000,"halvings":0,"cell_chars":16384,"cell_head_chars":4096},"cells_cut":0,"cells_raw":0,"read":"whole","date_system":"1900"}

{"sheet":"Hoja1","index":0,"n_rows":29,"n_cols":21,"rows_kept":29,"cut":false,"hidden":false,"merged":[[0,1,0,10],[1,3,1,4],[2,3,2,4],[2,5,2,6],[1,5,1,6],[2,7,2,8],[2,9,2,10],[1,7,1,8],[1,9,1,10],[1,1,2,2],[1,15,1,16],[1,17,1,18],[0,13,0,20],[2,15,2,16],[1,20,2,20],[1,19,2,19],[2,17,2,18],[1,13,2,14]]}
[null,"SENTIDO DE INICIATIVA E ESPIRITO EMPRENDEDOR - 3º PRIMARIA",null,null,null,null,null,null,null,null,null,null,null,"SENTIDO DE INICIATIVA E ESPIRITO EMPRENDEDOR - 3º PRIMARIA"]
[null,"3º A",null,"C. DA NATUREZA",null,"CIENCIAS SOCIAIS",null,"ED. FÍSICA",null,"L. CASTELÁ",null,null,null,"3º A",null,"L. GALEGA",null,"MATEMÁTICAS",null,"NOTA MEDIA","CUALIFICACIÓN"]
[null,null,null,"3º-CNB1.1.2 - Manifesta certa autonomía na observación, planificación e execución de accións e tarefas e ten iniciativa na toma de decisións.",null,"3º-CSB1.1.2 - Manifesta autonomía na planificación e execución de accións e tarefas coidando a súa presentación, ten iniciativa na toma de decisións e asume responsabilidades",null,"3º-EFB1.3.1 - Demostra certa autonomía resolvendo problemas motores.",null,"3º-LCB3.7.1 - Produce os textos establecidos no plan de escritura axeitados á súa idade e nivel.",null,null,null,null,null,"3º-LGB3.1.2 - Elabora o texto, con coherencia xeral e de xeito creativo",null,"3º-MTB3.6.2 - Reflexiona sobre o proceso seguido na resolución de problemas: revisando as operacións utilizadas, as unidades dos resultados, comprobando e interpretando as solucións no contexto."]
[null,null,"ALUMNO /A","Nota",0.2,"Nota",0.2,"Nota",0.1,"Nota",0.15,null,null,null,"ALUMNO /A","Nota",0.15,"Nota",0.2,1]
[null,1,null,null,{"$f":"D5*0.2","v":0},null,{"$f":"F5*0.2","v":0},null,{"$f":"H5*0.1","v":0},null,{"$f":"J5*0.15","v":0},null,null,1,null,null,{"$f":"P5*0.15","v":0},null,{"$f":"R5*0.2","v":0},{"$f":"SUM(S5,Q5,K5,I5,G5,E5,)","v":0},{"$f":"IF(T5<5,\"INSUFICIENTE\",IF(T5<6,\"SUFICIENTE\",IF(T5<7,\"BIEN\",IF(T5<9,\"NOTABLE\",\"SOBRESALIENTE\"))))","v":"INSUFICIENTE"}]
[null,2,null,null,{"$f":"D6*0.2","v":0},null,{"$f":"F6*0.2","v":0},null,{"$f":"H6*0.1","v":0},null,{"$f":"J6*0.15","v":0},null,null,2,null,null,{"$f":"P6*0.15","v":0},null,{"$f":"R6*0.2","v":0},{"$f":"SUM(S6,Q6,K6,I6,G6,E6,)","v":0},{"$f":"IF(T6<5,\"INSUFICIENTE\",IF(T6<6,\"SUFICIENTE\",IF(T6<7,\"BIEN\",IF(T6<9,\"NOTABLE\",\"SOBRESALIENTE\"))))","v":"INSUFICIENTE"}]
[null,3,null,null,0,null,0,null,0,null,0,null,null,3,null,null,0,null,0,0,"INSUFICIENTE"]
[null,4,null,null,0,null,0,null,0,null,0,null,null,4,null,null,0,null,0,0,"INSUFICIENTE"]
[null,5,null,null,0,null,0,null,0,null,0,null,null,5,null,null,0,null,0,0,"INSUFICIENTE"]
[null,{"$f":"B9+1","v":6},null,null,0,null,0,null,0,null,0,null,null,{"$f":"N9+1","v":6},null,null,0,null,0,0,"INSUFICIENTE"]
[null,{"$f":"B10+1","v":7},null,null,0,null,0,null,0,null,0,null,null,{"$f":"N10+1","v":7},null,null,0,null,0,0,"INSUFICIENTE"]
[null,8,null,null,0,null,0,null,0,null,0,null,null,8,null,null,0,null,0,0,"INSUFICIENTE"]
[null,9,null,null,0,null,0,null,0,null,0,null,null,9,null,null,0,null,0,0,"INSUFICIENTE"]
[null,10,null,null,0,null,0,null,0,null,0,null,null,10,null,null,0,null,0,0,"INSUFICIENTE"]
[null,11,null,null,0,null,0,null,0,null,0,null,null,11,null,null,0,null,0,0,"INSUFICIENTE"]
[null,12,null,null,0,null,0,null,0,null,0,null,null,12,null,null,0,null,0,0,"INSUFICIENTE"]
[null,13,null,null,0,null,0,null,0,null,0,null,null,13,null,null,0,null,0,0,"INSUFICIENTE"]
[null,14,null,null,0,null,0,null,0,null,0,null,null,14,null,null,0,null,0,0,"INSUFICIENTE"]
[null,15,null,null,0,null,0,null,0,null,0,null,null,15,null,null,0,null,0,0,"INSUFICIENTE"]
[null,16,null,null,0,null,0,null,0,null,0,null,null,16,null,null,0,null,0,0,"INSUFICIENTE"]
[null,17,null,null,0,null,0,null,0,null,0,null,null,17,null,null,0,null,0,0,"INSUFICIENTE"]
[null,18,null,null,0,null,0,null,0,null,0,null,null,18,null,null,0,null,0,0,"INSUFICIENTE"]
[null,19,null,null,0,null,0,null,0,null,0,null,null,19,null,null,0,null,0,0,"INSUFICIENTE"]
[null,20,null,null,0,null,0,null,0,null,0,null,null,20,null,null,0,null,0,0,"INSUFICIENTE"]
[null,21,null,null,0,null,0,null,0,null,0,null,null,21,null,null,0,null,0,0,"INSUFICIENTE"]
[null,22,null,null,0,null,0,null,0,null,0,null,null,22,null,null,0,null,0,0,"INSUFICIENTE"]
[null,23,null,null,0,null,0,null,0,null,0,null,null,23,null,null,0,null,0,0,"INSUFICIENTE"]
[null,24,null,null,0,null,0,null,0,null,0,null,null,24,null,null,0,null,0,0,"INSUFICIENTE"]
[null,25,null,null,0,null,0,null,0,null,0,null,null,25,null,null,0,null,0,0,"INSUFICIENTE"]